[Event "IX Iberoamericano Championship 2023"]
[Site "Panama City"]
[Date "2023.11.27"]
[Round "2.16"]
[White "Ticona Rocabado, Licael Roderick"]
[Black "Esmeraldas Huachi, Anderson"]
[Result "0-1"]
[ECO "D20"]
[WhiteElo "2412"]
[BlackElo "2120"]
[Annotator "RC"]
[PlyCount "102"]
[EventDate "2023.11.27"]
[EventType "swiss"]
[EventCountry "PAN"]
[SourceTitle "playchess.com"]
[Source "ChessBase"]
[SourceQuality "1"]
[TimeControl "5400+30"]

1. d4 {[%emt 0:08:31]} d5 {[%emt 0:00:06]} 2. c4 {[%emt 0:00:12]} dxc4 {[%emt 0:00:10]} 3. e4 {[%emt 0:00:39]} Nf6 {[%emt 0:03:48]} 4. Nc3 {[%emt 0:00:56]} e5 {[%emt 0:00:09]} 5. d5 {[%emt 0:01:19]} b5 {[%emt 0:00:07]} 6. Bg5 {[%emt 0:00:40]} b4 {[%emt 0:05:35]} 7. Na4 {[%emt 0:02:00]} h6 {[%emt 0:11:09]} 8. Bxf6 {[%emt 0:00:38]} Qxf6 {[%emt 0:00:03]} 9. Bxc4 {[%emt 0:00:10]} Qg6 {[%emt 0:03:03]} 10. Bb5+ {[%emt 0:00:50]} Bd7 {[%emt 0:06:38]} 11. Bxd7+ {[%emt 0:00:07]} Nxd7 {[%emt 0:00:02]} 12. Qf3 {[%emt 0:00:36]} Nf6 {[%emt 0:02:48]} 13. Rc1 {[%emt 0:00:11]} Qxe4+ {[%emt 0:11:52]} 14. Qxe4 {[%emt 0:00:02]} Nxe4 {[%emt 0:00:02]} 15. Rxc7 {[%emt 0:00:23]} Bd6 {[%emt 0:00:06]} 16. Rc6 {[%emt 0:04:01]} Kd7 {[%emt 0:01:34]} 17. Ne2 {[%emt 0:03:10]} Rhc8 {[%emt 0:01:25]} 18. Ra6 {[%emt 0:00:43]} Nc5 {[%emt 0:08:11]} 19. Nxc5+ {[%emt 0:01:24]} Rxc5 {[%emt 0:00:02]} 20. Ng3 {[%emt 0:00:10]} Rxd5 {[%emt 0:02:52]} 21. Nf5 {[%emt 0:01:01]} Bc5 {[%emt 0:08:18]} 22. Ke2 {[%emt 0:01:45]} Bb6 {[%emt 0:04:21]} 23. Rc1 {[%emt 0:00:16]} g6 {[%emt 0:08:00]} 24. Ne3 {[%emt 0:02:20]} Rc5 {[%emt 0:08:30]} 25. Rxc5 {[%emt 0:01:41]} Bxc5 {[%emt 0:00:01]} 26. Nd5 {[%emt 0:01:05]} Rc8 {[%emt 0:01:55]} 27. Nf6+ {[%emt 0:02:33]} Ke7 {[%emt 0:00:47]} 28. f3 {[%emt 0:02:53]} Bd4 {[%emt 0:01:23]} 29. Nd5+ {[%emt 0:00:07]} Kf8 {[%emt 0:00:29]} 30. Nxb4 {[%emt 0:02:54]} Rc4 {[%emt 0:00:58]} 31. a3 {[%emt 0:01:43]} Bxb2 {[%emt 0:01:31]} 32. Nc6 {[%emt 0:02:52]} Rc2+ {[%emt 0:02:59]} 33. Kd3 {[%emt 0:03:25]} Rxg2 {[%emt 0:03:06]} 34. Rxa7 {[%emt 0:00:11]} Rxh2 {[%emt 0:00:12]} 35. a4 {[%emt 0:00:02]} h5 {[%emt 0:02:20]} 36. a5 {[%emt 0:01:13]} Bd4 {[%emt 0:00:19]} 37. Ra8+ {[%emt 0:01:19]} Kg7 {[%emt 0:00:07]} 38. f4 {[%emt 0:00:01]} Rh3+ {[%emt 0:01:14]} 39. Ke4 {[%emt 0:00:25]} Rh4 {[%emt 0:02:17]} 40. Kf3 {[%emt 0:05:40]} Rxf4+ {[%emt 0:00:09]} 41. Kg2 {[%emt 0:00:12]} Re4 {[%emt 0:01:01]} 42. a6 {[%emt 0:00:22]} Re2+ {[%emt 0:00:11]} 43. Kf3 {[%emt 0:00:09]} Re3+ {[%emt 0:00:07]} 44. Kg2 {[%emt 0:00:04]} Ra3 {[%emt 0:00:07]} 45. Kh2 {[%emt 0:00:39]} g5 {[%emt 0:00:12]} 46. Ne7 {[%emt 0:00:07]} g4 {[%emt 0:01:13]} 47. Kg2 {[%emt 0:00:38]} Kf6 {[%emt 0:00:35]} 48. Nd5+ {[%emt 0:00:07]} Kg5 {[%emt 0:00:27]} 49. Rg8+ {[%emt 0:00:14]} Kh4 {[%emt 0:00:11]} 50. Nf6 {[%emt 0:00:21]} Ra2+ {[%emt 0:00:10]} 51. Kf1 {[%emt 0:00:36]} Rf2+ {[%emt 0:00:13]} 0-1

[Event "IX Iberoamericano Championship 2023"]
[Site "Panama City"]
[Date "2023.11.27"]
[Round "2.17"]
[White "Riquelme Quintero, Eduard Radames"]
[Black "Rodriguez Vila, Andres"]
[Result "0-1"]
[ECO "A21"]
[WhiteElo "1863"]
[BlackElo "2405"]
[Annotator "RC"]
[PlyCount "46"]
[EventDate "2023.11.27"]
[EventType "swiss"]
[EventCountry "PAN"]
[SourceTitle "playchess.com"]
[Source "ChessBase"]
[SourceQuality "1"]
[TimeControl "5400+30"]

1. c4 {[%emt 0:00:14]} e5 {[%emt 0:00:11]} 2. Nc3 {[%emt 0:00:07]} Bb4 {[%emt 0:00:19]} 3. Nd5 {[%emt 0:00:14]} Bc5 {[%emt 0:00:06]} 4. Nf3 {[%emt 0:00:07]} c6 {[%emt 0:00:28]} 5. b4 {[%emt 0:00:35]} Bxf2+ {[%emt 0:02:02]} 6. Kxf2 {[%emt 0:00:07]} cxd5 {[%emt 0:00:02]} 7. cxd5 {[%emt 0:01:46]} e4 {[%emt 0:02:31]} 8. Bb2 {[%emt 0:00:15]} Nf6 {[%emt 0:01:35]} 9. Ne5 {[%emt 0:04:46]} O-O {[%emt 0:02:53]} 10. Qb3 {[%emt 0:05:38]} d6 {[%emt 0:06:13]} 11. Nc4 {[%emt 0:00:09]} Nxd5 {[%emt 0:07:17]} 12. Qg3 {[%emt 0:00:28]} f6 {[%emt 0:00:14]} 13. Qxd6 {[%emt 0:00:34]} b5 {[%emt 0:00:40]} 14. Qxd8 Rxd8 {[%emt 0:00:01]} 15. Na3 {[%emt 0:02:37]} Nc6 {[%emt 0:05:42]} 16. Nxb5 {[%emt 0:03:47]} Rb8 {[%emt 0:00:06]} 17. e3 {[%emt 0:01:09]} Ndxb4 {[%emt 0:03:00]} 18. Bc4+ {[%emt 0:07:10]} Kh8 {[%emt 0:00:04]} 19. Bc3 {[%emt 0:02:12]} Ne5 {[%emt 0:00:32]} 20. Be2 {[%emt 0:05:44]} Nbd3+ {[%emt 0:00:25]} 21. Kg3 {[%emt 0:00:32]} Rxb5 {[%emt 0:00:06]} 22. Rhb1 {[%emt 0:01:38]} Rbd5 {[%emt 0:03:13]} 23. Rb8 {[%emt 0:01:57]} Nc6 {[%emt 0:00:56]} 0-1

[Event "IX Iberoamericano Championship 2023"]
[Site "Panama City"]
[Date "2023.11.27"]
[Round "2.18"]
[White "Castillo Beitia, Ashley Alexandra"]
[Black "Ynojosa Aponte, Felix Jose"]
[Result "0-1"]
[ECO "D43"]
[WhiteElo "1830"]
[BlackElo "2393"]
[Annotator "RC"]
[PlyCount "78"]
[EventDate "2023.11.27"]
[EventType "swiss"]
[EventCountry "PAN"]
[SourceTitle "playchess.com"]
[Source "ChessBase"]
[SourceQuality "1"]
[TimeControl "5400+30"]

1. d4 {[%emt 0:00:01]} Nf6 {[%emt 0:04:38]} 2. c4 {[%emt 0:00:02]} e6 {[%emt 0:00:02]} 3. Nf3 {[%emt 0:00:13]} d5 {[%emt 0:00:03]} 4. Nc3 {[%emt 0:00:08]} c6 {[%emt 0:00:01]} 5. Bg5 {[%emt 0:00:09]} h6 {[%emt 0:00:04]} 6. Bh4 {[%emt 1:32:57]} dxc4 {[%emt 0:00:03]} 7. a4 {[%emt 0:00:00]} Bb4 {[%emt 0:01:33]} 8. e3 {[%emt 0:00:00]} b5 {[%emt 0:00:04]} 9. Be2 {[%emt 0:00:00]} Bb7 {[%emt 0:00:06]} 10. O-O {[%emt 0:00:00]} a6 {[%emt 0:00:02]} 11. Qc2 {[%emt 0:00:00]} Nbd7 {[%emt 0:00:04]} 12. Rad1 {[%emt 0:00:00]} Qa5 {[%emt 0:00:19]} 13. Ne5 {[%emt 0:00:00]} Nxe5 {[%emt 0:01:30]} 14. Bxf6 {[%emt 0:00:00]} gxf6 {[%emt 0:00:51]} 15. dxe5 {[%emt 0:00:00]} fxe5 {[%emt 0:02:00]} 16. Bf3 {[%emt 0:00:00]} f5 {[%emt 0:02:32]} 17. g4 {[%emt 0:00:00]} Bxc3 {[%emt 0:04:00]} 18. bxc3 {[%emt 0:00:00]} Rf8 {[%emt 0:12:45]} 19. gxf5 {[%emt 0:00:00]} exf5 {[%emt 0:03:37]} 20. Rd6 {[%emt 0:00:00]} Rd8 {[%emt 0:05:14]} 21. Re6+ {[%emt 0:00:00]} Kd7 {[%emt 0:00:50]} 22. Rxe5 {[%emt 0:00:00]} Kc7 {[%emt 0:02:03]} 23. Be2 {[%emt 0:00:00]} Kb8 {[%emt 0:04:06]} 24. Rc1 {[%emt 0:00:00]} Qc7 {[%emt 0:00:22]} 25. Rxf5 {[%emt 0:00:00]} c5 {[%emt 0:00:53]} 26. f3 {[%emt 0:00:00]} Rg8+ {[%emt 0:00:23]} 27. Kh1 {[%emt 0:00:00]} Qg7 {[%emt 0:00:10]} 28. Bxc4 {[%emt 0:00:00]} bxc4 {[%emt 0:00:09]} 29. e4 {[%emt 0:00:00]} Rd3 {[%emt 0:00:16]} 30. Rf4 {[%emt 0:00:00]} Rxc3 {[%emt 0:00:26]} 31. Rf8+ {[%emt 0:00:00]} Rxf8 {[%emt 0:00:03]} 32. Qxc3 {[%emt 0:00:00]} Qxc3 {[%emt 0:00:06]} 33. Rxc3 {[%emt 0:00:00]} Rxf3 {[%emt 0:00:03]} 34. Rxc4 {[%emt 0:00:00]} Rf4 {[%emt 0:00:38]} 35. Rxc5 {[%emt 0:00:00]} Rg4 {[%emt 0:00:11]} 36. h4 {[%emt 0:00:00]} Rxh4+ {[%emt 0:01:01]} 37. Kg1 {[%emt 0:00:00]} Rxe4 {[%emt 0:00:02]} 38. a5 {[%emt 0:00:00]} Rg4+ {[%emt 0:00:08]} 39. Kh2 {[%emt 0:00:00]} Rg5 {[%emt 0:00:02]} 0-1

[Event "IX Iberoamericano Championship 2023"]
[Site "Panama City"]
[Date "2023.11.27"]
[Round "3.1"]
[White "Henriquez Villagra, Cristobal"]
[Black "Sanchez Alvarez, Roberto Carlos"]
[Result "1-0"]
[ECO "B90"]
[WhiteElo "2630"]
[BlackElo "2437"]
[Annotator "TA"]
[PlyCount "75"]
[EventDate "2023.11.27"]
[EventType "swiss"]
[EventCountry "PAN"]
[SourceTitle "playchess.com"]
[Source "ChessBase"]
[SourceQuality "1"]
[TimeControl "5400+30"]

{[%evp 12,75,21,0,7,12,2,12,16,0,18,0,0,0,0,0,8,0,0,0,74,78,72,92,80,87,109,109,100,102,96,101,100,97,147,144,134,135,143,136,266,267,266,252,278,174,275,261,290,267,664,596,702,629,1309,1206,805,409,29962,29964,29960,29956,6645,6320,5081,2966]} 1. e4 {[%emt 0:00:02]} c5 {[%emt 0:09:10]} 2. Nf3 {[%emt 0:00:06][%cal Bg1f3,Bf3d4,Bd4b3][%mdl 32]} d6 {[%emt 0:00:08]} 3. d4 {[%emt 0:00:05]} cxd4 {[%emt 0:00:07]} 4. Nxd4 {[%emt 0:00:04]} Nf6 {[%emt 0:00:09]} 5. Nc3 {[%emt 0:00:05]} a6 {[%emt 0:00:08]} 6. h3 {[%emt 0:00:06]} e5 {[%emt 0:00:52]} 7. Nb3 {[%emt 0:00:07]} Be7 {[%emt 0:02:31] B90: Sicilian Najdorf: Unusual White 6th moves, 6 Be3 Ng4 and 6 Be3 e5.} 8. g4 {[%emt 0:01:37]} h6 {[%emt 0:00:19]} 9. Be3 {[%emt 0:00:56]} Nbd7 {[%emt 0:00:46] The position is equal. 9...b5 is more fashionable.} 10. a4 {[%emt 0:02:33]} Nf8 {[%emt 0:00:30]} 11. Qd2 {[%emt 0:03:12]} Be6 {[%emt 0:00:57]} 12. O-O-O {[%emt 0:00:47]} Ng6 {[%emt 0:00:30]} 13. Kb1 $5 {[%emt 0:02:25][%mdl 4] A promising side line.} Rc8 {[%emt 0:04:43]} 14. f3 {[%emt 0:03:07]} Nd7 {[%emt 0:04:25]} 15. Nd5 {[%emt 0:14:46] [#]} Bg5 $146 {[%emt 0:05:14]} (15... Bxd5 $11 16. Qxd5 Qc7) ({Predecessor:} 15... Bxd5 16. Qxd5 Qc7 17. c3 O-O 18. Rh2 Rfd8 19. Qa5 Qb8 20. Rhd2 Nh4 21. Be2 Re8 {1-0 Kazimierski,T (2153)-Sciarretta,R (2128) LSS SA-2021-0-00782}) 16. Bxg5 $16 {[%emt 1:08:32] White stays focused until the end.} hxg5 17. Qb4 Bxd5 {[%mdl 64] Remove Defender} 18. Rxd5 Qc7 19. Rh2 {[%cal Bh1h2,Bh2d2,Bd2d6][%mdl 32] Active counter play!} Nc5 {[#]} 20. Rhd2 $1 Nxb3 21. Qxb3 Rd8 {...Nf4 would be deadly.} 22. Qb4 Nf4 ({Better is} 22... Rh6) 23. Rxd6 Rxd6 24. Rxd6 {aiming for Rb6.} O-O 25. c3 Rd8 (25... Ne6 $16 26. Rb6 Nc5) 26. Rxd8+ $18 Qxd8 {[%mdl 4096] Endgame [#] KQB-KQN} 27. Kc2 {Wards off Qd1+} Qd7 28. b3 Kh7 (28... b5 {is a better defense.}) 29. a5 Kg6 30. Bc4 Ng2 $2 (30... Kf6 31. Qc5 (31. Qb6+ Ke7 $16) 31... Ne6) 31. Qb6+ f6 32. Bd5 {[%emt 0:00:00]} Ne1+ {[%emt 0:42:06]} 33. Kd2 {[%emt 0:00:00]} Nxf3+ {[%emt 0:00:30]} 34. Ke2 {[%emt 0:00:00]} Ng1+ {[%emt 0:00:30]} (34... Qc8 $18) 35. Qxg1 {[%emt 0:00:00]} Qb5+ {[%emt 0:00:30]} 36. Kd2 {[%emt 0:00:00]} Qxa5 {[%emt 0:00:30]} 37. b4 {[%emt 0:00:00]} Qa3 {[%emt 0:00:30]} 38. Qc1 {[%emt 0:00:00] Weighted Error Value: White=0.23 (precise) /Black=0.59} 1-0

[Event "IX Iberoamericano Championship 2023"]
[Site "Panama City"]
[Date "2023.11.27"]
[Round "3.2"]
[White "De La Riva Aguado, Oscar"]
[Black "Cori, Jorge"]
[Result "1/2-1/2"]
[ECO "C45"]
[WhiteElo "2437"]
[BlackElo "2626"]
[Annotator "TA"]
[PlyCount "42"]
[EventDate "2023.11.27"]
[EventType "swiss"]
[EventCountry "PAN"]
[SourceTitle "playchess.com"]
[Source "ChessBase"]
[SourceQuality "1"]
[TimeControl "5400+30"]

{[%evp 11,42,36,41,0,30,5,18,0,2,-20,-25,-28,-27,-14,-11,-16,-20,-31,-24,-51,-11,-22,-19,-35,0,0,47,0,0,0,40,0,0]} 1. e4 {[%emt 0:00:04]} e5 {[%emt 0:08:09]} 2. Nf3 {[%emt 0:00:36][%cal Bg1f3,Bf3d4,Bd4b3][%mdl 32]} Nc6 {[%emt 0:00:08]} 3. d4 {[%emt 0:00:38]} exd4 {[%emt 0:00:31]} 4. Nxd4 {[%emt 0:00:08]} Bc5 {[%emt 0:07:01]} 5. Nb3 {[%emt 0:00:26]} Bb4+ {[%emt 0:02:34]} 6. c3 {[%emt 0:02:52]} Be7 {[%emt 0:00:06]} 7. Bd3 {[%emt 0:16:25] C45: Scotch Game.} Nf6 {[%emt 0:06:11]} 8. O-O {[%emt 0:02:49]} d5 {[%emt 0:00:33]} 9. exd5 {[%emt 0:05:42]} Qxd5 {[%emt 0:00:08]} 10. Bf4 {[%emt 0:05:07]} Bg4 $1 {[%emt 0:01:11]} 11. Be2 {[%emt 0:00:05] [#]} Bxe2 $146 {[%emt 0:11:52]} (11... Qxd1 {simplifies} 12. Bxd1 O-O-O 13. Bxg4+ Nxg4 14. N1d2 Nge5) ({Predecessor:} 11... Qxd1 12. Bxd1 O-O-O 13. N1d2 h5 14. h4 Nd5 15. Bg3 Bxd1 {½-½ Lehaci,M (2212)-Efremov,V (2273) Novi Sad TS Mix 227th 2021 (2)}) 12. Qxe2 {[%emt 0:00:06]} O-O-O {[%emt 0:00:10]} 13. N1d2 {[%emt 0:18:17]} Rhe8 {[%emt 0:00:30][%cal Oe7a3] Strongly threatening ...Ba3!} 14. Qf3 {[%emt 0:00:30]} g5 {[%emt 0:00:30] [#] ...Qxf3 is the strong threat.} (14... Qxf3 {simplifies} 15. Nxf3 Nd5 16. Bg3 a5) 15. Bg3 {[%emt 0:00:30]} h5 {[%emt 0:00:30] ...h4 would be deadly.} (15... a5 {simplifies} 16. a4 Qxf3 17. Nxf3 Nd7) 16. h4 {[%emt 0:00:30]} gxh4 {[%emt 0:00:30]} 17. Bxh4 {[%emt 0:00:30]} Ne5 {[%emt 0:00:30]} 18. Qf5+ {[%emt 0:00:30]} Ned7 {[%emt 0:00:30]} (18... Nfd7 $11 19. Bxe7 (19. Qxh5 $2 {perishes.} Rh8 $19 {[%mdl 64] Skewer}) 19... Rxe7) 19. Qf3 {[%emt 0:00:30]} Ne5 {[%emt 0:00:30]} 20. Qf5+ {[%emt 0:00:30]} Ned7 {[%emt 0:00:30]} 21. Qf3 {[%emt 0:00:30]} Ne5 {[%emt 0:00:30] Weighted Error Value: White=0.17 (very precise) /Black=0.11 (very precise)} 1/2-1/2

[Event "IX Iberoamericano Championship 2023"]
[Site "Panama City"]
[Date "2023.11.27"]
[Round "3.3"]
[White "Mareco, Sandro"]
[Black "Duran Vega, Sergio"]
[Result "1-0"]
[ECO "B31"]
[WhiteElo "2606"]
[BlackElo "2392"]
[Annotator "TA"]
[PlyCount "47"]
[EventDate "2023.11.27"]
[EventType "swiss"]
[EventCountry "PAN"]
[SourceTitle "playchess.com"]
[Source "ChessBase"]
[SourceQuality "1"]
[TimeControl "5400+30"]

{[%evp 16,35,34,18,27,2,46,44,150,128,175,114,364,352,360,352,1478,1476,1257,1256,2291,2176]} 1. e4 {[%emt 0:00:52]} c5 {[%emt 0:02:36]} 2. Nf3 {[%emt 0:00:04]} Nc6 {[%emt 0:00:24]} 3. Bb5 {[%emt 0:00:04]} g6 {[%emt 0:01:36]} 4. O-O {[%emt 0:00:05]} Bg7 {[%emt 0:00:07]} 5. c3 {[%emt 0:00:14]} e5 {[%emt 0:04:48]} 6. d4 {[%emt 0:00:34]} cxd4 {[%emt 0:00:21]} 7. cxd4 {[%emt 0:00:04]} exd4 {[%emt 0:00:05]} 8. Bf4 {[%emt 0:00:07]} Nge7 {[%emt 0:00:20]} 9. Bd6 {[%emt 0:00:32][%mdl 1024] White has compensation.} a6 {[%emt 0:01:59] B31: Sicilian: 2...Nc6 3 Bb5 g6.} 10. Bd3 {[%emt 0:00:09]} (10. Bc4 $5 {[%cal Ra2a4]}) 10... O-O {[%emt 0:12:49]} 11. Nbd2 {[%emt 0:00:47]} Re8 {[%emt 0:03:50]} (11... b6 $14) 12. a4 {[%emt 0:19:05] White has more active pieces.} b6 {[%emt 0:04:00]} (12... h6 $16 {was worth a try.}) 13. Bc4 {[%emt 0:01:05]} ({White should try} 13. Ng5 $18 {[%cal Og5f7] And now Nxf7! would win.} Ne5 14. f4) 13... h6 $2 {[%emt 0:05:07] [#]} (13... Na5 $16) 14. Bxf7+ $1 $18 {[%emt 0:17:35][%mdl 576] Decoy} Kxf7 {[%emt 0:00:11]} 15. Qb3+ {[%emt 0:00:05]} Kf8 $2 {[%emt 0:04:43] [#]} (15... Nd5 16. Rfe1 (16. Qxd5+ Re6 $16) 16... Bb7) 16. Ng5 $1 {[%emt 0:00:15][%mdl 512] White is clearly winning.} hxg5 {[%emt 0:17:20] [#]} 17. f4 $1 {[%emt 0:00:07][%cal Bf2f4,Bf4f5][%mdl 32]} g4 {[%emt 0:01:16]} 18. f5 {[%emt 0:00:15] [#] White took control after the opening. Artfully played by Mareco.   Weighted Error Value: White=0.13 (very precise) /Black=0.97} {Predecessor:} Be5 $146 19. fxg6+ Kg7 20. Qf7+ Kh6 21. Qh7+ Kg5 22. h4+ gxh3 23. Nf3+ Kf4 24. Qh4+ {1-0 Faibisovich,V (2431)-Kucypera,A (2242) Krakow op-A 2003 (2)} 1-0

[Event "IX Iberoamericano Championship 2023"]
[Site "Panama City"]
[Date "2023.11.27"]
[Round "3.4"]
[White "Flores Quillas, Diego Saul Rodri"]
[Black "Hernandez Guerrero, Gilberto"]
[Result "1/2-1/2"]
[ECO "B80"]
[WhiteElo "2414"]
[BlackElo "2527"]
[Annotator "RC"]
[PlyCount "62"]
[EventDate "2023.11.27"]
[EventType "swiss"]
[EventCountry "PAN"]
[SourceTitle "playchess.com"]
[Source "ChessBase"]
[SourceQuality "1"]
[TimeControl "5400+30"]

1. e4 {[%emt 0:22:19]} c5 {[%emt 0:00:19]} 2. Nf3 {[%emt 0:00:06]} e6 {[%emt 0:00:42]} 3. d4 {[%emt 0:00:18]} cxd4 {[%emt 0:00:06]} 4. Nxd4 {[%emt 0:00:05]} Nc6 {[%emt 0:00:04]} 5. Nc3 {[%emt 0:00:05]} Qc7 {[%emt 0:00:15]} 6. g3 {[%emt 0:00:14]} a6 {[%emt 0:00:48]} 7. Bg2 {[%emt 0:00:07]} Nf6 {[%emt 0:00:16]} 8. O-O {[%emt 0:00:11]} d6 {[%emt 0:02:11]} 9. Re1 {[%emt 0:00:07]} Rb8 {[%emt 0:00:21]} 10. Nxc6 {[%emt 0:02:01]} bxc6 {[%emt 0:01:18]} 11. Na4 {[%emt 0:00:05]} Be7 {[%emt 0:04:01]} 12. c4 {[%emt 0:00:57]} c5 {[%emt 0:00:08]} 13. b3 {[%emt 0:00:27]} O-O {[%emt 0:16:38]} 14. Bb2 {[%emt 0:00:19]} Nd7 {[%emt 0:02:06]} 15. f4 {[%emt 0:01:17]} Bb7 {[%emt 0:00:31]} 16. Qe2 {[%emt 0:00:20]} Bc6 {[%emt 0:00:44]} 17. Nc3 {[%emt 0:00:42]} Bf6 {[%emt 0:00:14]} 18. Rac1 {[%emt 0:08:55]} Bd4+ {[%emt 0:04:52]} 19. Kh1 {[%emt 0:00:50]} Rfe8 {[%emt 0:07:26]} 20. Nd1 {[%emt 0:03:59]} a5 {[%emt 0:05:48]} 21. Qd2 {[%emt 0:02:32]} Qb6 {[%emt 0:06:49]} 22. Nf2 {[%emt 0:03:03]} e5 {[%emt 0:03:19]} 23. Nd3 {[%emt 0:02:34]} Re7 {[%emt 0:10:32]} 24. Bc3 {[%emt 0:08:25]} Ra8 {[%emt 0:07:45]} 25. Re2 {[%emt 0:06:39]} h6 {[%emt 0:01:04]} 26. Rb1 {[%emt 0:02:25]} Nf6 {[%emt 0:00:56]} 27. Bxd4 {[%emt 0:02:59]} exd4 {[%emt 0:01:43]} 28. Nf2 {[%emt 0:03:00]} Qb7 {[%emt 0:03:47]} 29. Qd3 {[%emt 0:00:23]} Rae8 {[%emt 0:00:41]} 30. Rbe1 {[%emt 0:00:06]} Nd7 {[%emt 0:02:41]} 31. Kg1 {[%emt 0:03:38]} Qb4 {[%emt 0:04:28]} 1/2-1/2

[Event "IX Iberoamericano Championship 2023"]
[Site "Panama City"]
[Date "2023.11.27"]
[Round "3.5"]
[White "Almeida Quintana, Omar"]
[Black "Soto, Miguel Angel"]
[Result "1-0"]
[ECO "A48"]
[WhiteElo "2509"]
[BlackElo "2359"]
[Annotator "RC"]
[PlyCount "97"]
[EventDate "2023.11.27"]
[EventType "swiss"]
[EventCountry "PAN"]
[SourceTitle "playchess.com"]
[Source "ChessBase"]
[SourceQuality "1"]
[TimeControl "5400+30"]

1. d4 {[%emt 0:03:35]} Nf6 {[%emt 0:02:44]} 2. Nf3 {[%emt 0:00:47]} g6 {[%emt 0:01:09]} 3. Bf4 {[%emt 0:00:07]} Bg7 {[%emt 0:00:51]} 4. e3 {[%emt 0:00:03]} O-O {[%emt 0:01:17]} 5. h3 {[%emt 0:00:04]} c5 {[%emt 0:02:47]} 6. Nbd2 {[%emt 0:00:32]} b6 {[%emt 0:01:06]} 7. a4 {[%emt 0:01:13]} Nc6 {[%emt 0:05:27]} 8. c3 {[%emt 0:00:12]} Bb7 {[%emt 0:03:46]} 9. Be2 {[%emt 0:01:10]} d5 {[%emt 0:02:44]} 10. O-O {[%emt 0:03:40]} Nd7 {[%emt 0:01:52]} 11. Qb3 {[%emt 0:02:01]} e5 {[%emt 0:08:16]} 12. dxe5 {[%emt 0:00:26]} Ndxe5 {[%emt 0:00:43]} 13. Rfd1 {[%emt 0:03:11]} Qe7 {[%emt 0:08:07]} 14. Nxe5 {[%emt 0:03:32]} Nxe5 {[%emt 0:00:28]} 15. Nf3 {[%emt 0:00:40]} Nd7 {[%emt 0:01:53]} 16. a5 {[%emt 0:08:40]} c4 {[%emt 0:06:23]} 17. Qa4 {[%emt 0:05:24]} Nc5 {[%emt 0:11:14]} 18. Qb4 {[%emt 0:00:08]} Qe6 {[%emt 0:01:13]} 19. Nd4 {[%emt 0:01:35]} Qf6 {[%emt 0:07:15]} 20. Qb5 {[%emt 0:16:07]} Ne6 {[%emt 0:11:50]} 21. Nxe6 {[%emt 0:09:43]} Qxe6 {[%emt 0:00:59]} 22. Bg4 {[%emt 0:00:17]} Qc6 {[%emt 0:03:37]} 23. Qxc6 {[%emt 0:02:15]} Bxc6 {[%emt 0:00:07]} 24. Bd6 {[%emt 0:03:00]} Rfe8 {[%emt 0:02:00]} 25. Bf3 {[%emt 0:34:38]} Rad8 {[%emt 0:00:59]} 26. Bxd5 {[%emt 0:00:00]} Bxd5 {[%emt 0:03:40]} 27. Rxd5 {[%emt 0:00:00]} bxa5 {[%emt 0:00:30]} 28. Raxa5 {[%emt 0:00:00]} Bf8 {[%emt 0:05:08]} 29. Bxf8 {[%emt 0:00:00]} Kxf8 {[%emt 0:00:43]} 30. Rxd8 {[%emt 0:00:00]} Rxd8 {[%emt 0:00:07]} 31. Rxa7 {[%emt 0:00:00]} Rd1+ {[%emt 0:01:45]} 32. Kh2 {[%emt 0:00:00]} Rd2 {[%emt 0:00:03]} 33. Kg3 {[%emt 0:00:00]} h5 {[%emt 0:00:15]} 34. h4 {[%emt 0:00:00]} Rxb2 {[%emt 0:00:13]} 35. Rc7 {[%emt 0:00:00]} Rc2 {[%emt 0:00:28]} 36. Rxc4 {[%emt 0:00:00]} Kg7 {[%emt 0:00:06]} 37. Rc6 {[%emt 0:00:00]} Kf8 {[%emt 0:00:19]} 38. e4 {[%emt 0:00:00]} Ke7 {[%emt 0:00:07]} 39. f3 {[%emt 0:00:00]} Kd7 {[%emt 0:00:27]} 40. Rc4 {[%emt 0:00:00]} Ke6 {[%emt 0:00:14]} 41. Kh3 {[%emt 0:00:00]} Ke5 {[%emt 0:01:23]} 42. Rc7 {[%emt 0:00:00]} f5 {[%emt 0:01:41]} 43. exf5 {[%emt 0:00:00]} gxf5 {[%emt 0:00:12]} 44. Rc5+ {[%emt 0:00:00]} Kf6 {[%emt 0:01:10]} 45. Kg3 {[%emt 0:00:00]} Ke6 {[%emt 0:00:45]} 46. c4 {[%emt 0:00:00]} Rc3 {[%emt 0:01:56]} 47. Kf4 {[%emt 0:00:00]} Rc2 {[%emt 0:00:26]} 48. g3 {[%emt 0:00:00]} Rc3 {[%emt 0:00:11]} 49. Re5+ {[%emt 0:00:00]} 1-0